Cogmind - Beta 11 @@@ ROGUE MODE // 2022.03.24 @ 13:40:43 Player: Pitt Result: Destroyed by H-55 Commando with Assault Rifle Performance ------------- Evolutions (2) 1000 Regions Visited (6) 1200 Robots Destroyed (53) 265 Value Destroyed (1944) 1944 Prototype IDs (2) 40 Alien Tech Used (0) 0 Bonus (808) 808 TOTAL SCORE: 5257 Bonus ------- High Alert Combat Kills 66 Follower Combat Kills 42 Entered Garrisons 200 Used RIF Installer 500 Cogmind --------- Core Integrity 0/550 Matter 300/300 Energy 95/100 System Corruption 0% Temperature Cool (0) Movement Core (50) Location -8/Garrison Parts ------- > --- POWER (1) -------- (None) > --- PROPULSION (4) --- (None) > --- UTILITY (4) ------ Hacking Suite > --- WEAPON (2) ------- Spear > --- INVENTORY (5) ---- Light Nuclear Core Particle Gun Heavy Particle Cannon Rocket Launcher Datajack Peak State ------------ > --- POWER ------------ Light Nuclear Core > --- PROPULSION ------- Carbon-fiber Leg Airjet Airjet Airjet > --- UTILITY ---------- Medium Storage Unit Targeting Computer Targeting Computer Hacking Suite > --- WEAPON ----------- Spear Spear > --- INVENTORY -------- Deuterium Engine Deuterium Engine Carbon-fiber Leg Hover Unit Improved Hover Unit Improved Hover Unit Improved Sensor Array Heavy Particle Cannon Rocket Launcher Datajack [Rating: 31] Favorites ----------- Power Deuterium Engine Engine Deuterium Engine Power Core Light Nuclear Core Propulsion Aluminum Leg Leg Aluminum Leg Wheel Wheel Hover Unit Hover Unit Utility Medium Storage Unit Device Improved Terrain Scanner Storage Medium Storage Unit Processor Targeting Computer Hackware Hacking Suite Weapon Medium Laser Energy Gun Medium Laser Energy Cannon Heavy Particle Cannon Ballistic Gun High-powered Shotgun Launcher Rocket Launcher Special Weapon Mining Laser Piercing Weapon Spear Special Melee Weapon Datajack Build | -11 -10 -10 -9 -9 -8 -8 ------- Run | Scr Mat Min Mat Min Mat Gar Slots Evolved 4 | . . . 2 . 2 . Power . | . . . . . . . Propulsion 2 | . . . 2 . . . Utility 2 | . . . . . 2 . Weapon . | . . . . . . . Parts Attached 70 | 10 2 2 9 8 22 17 Power 7 | 1 . 1 1 . 1 3 Engine 5 | 1 . 1 1 . . 2 Core 2 | . . . . . 1 1 Reactor . | . . . . . . . Propulsion 30 | 4 . . 5 2 8 11 Treads . | . . . . . . . Leg 15 | 2 . . . 2 3 8 Wheel 2 | 2 . . . . . . Hover 13 | . . . 5 . 5 3 Flight . | . . . . . . . Utility 14 | 3 2 1 . 2 5 1 Device 9 | 2 1 1 . 2 2 1 Storage 2 | 1 1 . . . . . Processor 2 | . . . . . 2 . Hackware 1 | . . . . . 1 . Protection . | . . . . . . . Artifact . | . . . . . . . Weapon 19 | 2 . . 3 4 8 2 Energy Gun 4 | 2 . . . 1 1 . Energy Cannon 1 | . . . . . . 1 Ballistic Gun 6 | . . . 2 2 2 . Ballistic Cannon . | . . . . . . . Launcher 2 | . . . . 1 1 . Special Weapon 1 | . . . 1 . . . Impact Weapon . | . . . . . . . Slashing Weapon . | . . . . . . . Piercing Weapon 4 | . . . . . 3 1 Special Melee Weapon 1 | . . . . . 1 . Unidentified Prototypes . | . . . . . . . Parts Lost 23 | . . 1 1 2 1 18 Power 3 | . . . . . . 3 Propulsion 14 | . . . 1 2 . 11 Utility 5 | . . 1 . . 1 3 Weapon 1 | . . . . . . 1 Highest Loss Streak 8 | . . 1 1 1 1 8 To Critical Strikes . | . . . . . . . Average Slot Usage (%) 91 | . 100 99 91 86 93 82 Engine 10 | . 14 14 11 11 7 5 Leg 13 | . . . . 17 26 18 Wheel 8 | . 28 28 1 . . . Hover 7 | . . . 35 13 4 7 Device 10 | . 14 13 11 11 8 6 Storage 11 | . 14 14 11 11 9 9 Processor 5 | . . . . . 18 9 Hackware 1 | . . . . . . 9 Energy Gun 11 | . 28 28 16 8 . . Ballistic Gun 4 | . . . 5 12 5 . Piercing Weapon 4 | . . . . . 9 12 Naked Turns . | . . . . . . . Heaviest Build 27 | 15 20 20 26 27 27 24 Greatest Support 55 | 20 20 20 24 20 55 40 Greatest Overweight (x) 7 | . . . 1 2 2 7 Average Overweight (x) . | . . . . 1 . . Largest Inventory Capacity 10 | 8 10 10 10 10 10 10 Average Capacity 9 | 7 9 10 10 10 10 9 Most Carried 10 | 8 10 10 10 10 10 10 Average Carried 8 | 4 9 9 8 9 9 8 Final Capacity 10 | 8 10 10 10 10 10 5 Final Carried 10 | 8 10 10 9 10 10 5 Class Distribution -------------------- 52% | Mutant 47% | Scavenger-Mutant Dominant Class ---------------- Mutant | -10/Materials Mutant | -10/Mines Scavenger-Mutant | -9/Materials Scavenger-Mutant | -9/Mines Scavenger-Mutant | -8/Materials Scavenger-Mutant | -8/Garrison Resources | -11 -10 -10 -9 -9 -8 -8 ----------- Run | Scr Mat Min Mat Min Mat Gar Matter Collected 1014 | 300 13 37 . 199 290 175 Remotely 140 | 140 . . . . . . Salvage Created 2032 | 253 62 237 50 221 599 610 Parts 121 | 14 8 10 9 13 39 28 Haulers Intercepted . | . . . . . . . Recyclers Shooed 2 | 1 . . . . 1 . Parts Field Recycled . | . . . . . . . Retrieved Matter . | . . . . . . . Parts Self-Destructed . | . . . . . . . Prevented . | . . . . . . . Kills | -11 -10 -10 -9 -9 -8 -8 ------- Run | Scr Mat Min Mat Min Mat Gar Combat Hostiles Destroyed 35 | . . 4 4 4 11 12 Melee 23 | . . . . . 11 12 Guns 9 | . . 2 4 3 . . AOE 1 | . . . . 1 . . Classes Destroyed 9 | 2 1 2 1 1 2 . Builder 1 | . . . . 1 . . Tunneler 10 | 8 . 1 . 1 . . Recycler 2 | 1 . . . 1 . . Operator 1 | . . . . . 1 . Watcher 4 | . 3 . . . 1 . Swarmer 6 | . . . 4 2 . . Grunt 22 | . . 2 . 2 7 11 Brawler 2 | . . . . . 1 1 Sentry 5 | . . 2 . . 3 . Best Kill Streak 6 | 6 2 2 4 1 6 3 Combat Bots Only 6 | . . 2 4 1 6 3 Max Kills in Single Turn 2 | 1 1 1 2 1 1 1 Gunslinging . | . . . . . . . Exploded 1 | . . . . 1 . . Melee 1 | . . . . . 1 1 Uniques/NPCs Destroyed . | . . . . . . . Combat | -11 -10 -10 -9 -9 -8 -8 -------- Run | Scr Mat Min Mat Min Mat Gar Damage Taken 2631 | . 8 287 97 201 389 1649 Core 734 | . . 132 9 31 42 520 Absorbed by Shields . | . . . . . . . Core Remaining (%) 79 | 100 . 47 . 90 . . Volleys Fired 80 | 18 5 16 8 28 5 . Largest 2 | 2 2 2 2 2 2 . Hottest 100 | 100 100 100 100 73 63 . Shots Fired 151 | 36 10 33 13 52 7 . Gun 145 | 36 10 33 10 51 5 . Cannon . | . . . . . . . Launcher 3 | . . . . 1 2 . Special 3 | . . . 3 . . . Kinetic 34 | . . . . 30 4 . Thermal 114 | 36 10 33 13 21 1 . Explosive 3 | . . . . 1 2 . Electromagnetic . | . . . . . . . Robot Hit Streak 12 | 8 2 12 7 5 5 . Robot Miss Streak 6 | 2 3 4 1 6 2 . Penetration Max . | . . . . . . . Secondary Targets 2 | . . 1 1 . . . Max Gunslinging Chain 1 | . . 1 1 . . . Shots Hit Robots 173 | 23 4 24 8 23 38 53 Core Hits 72 | 9 3 7 5 9 18 21 Critical Kills . | . . . . . . . Critical Parts Destroyed . | . . . . . . . Critical Strikes 14 | 3 2 1 . 1 2 5 Burn 7 | 3 2 1 . 1 . . Impale 7 | . . . . . 2 5 Melee Attacks 130 | . . . . . 49 81 Impact . | . . . . . . . Slashing . | . . . . . . . Piercing 129 | . . . . . 48 81 Sneak Attacks 2 | . . . . . 2 . Combat Hostiles . | . . . . . . . Follow-up Attacks 11 | . . . . . 7 4 Damage Inflicted 3631 | 285 51 302 98 421 995 1479 Guns 1072 | 285 51 302 98 301 35 . Cannons . | . . . . . . . Explosions 196 | . . . . 120 76 . Melee 2363 | . . . . . 884 1479 Ramming . | . . . . . . . Kinetic 208 | . . . . 190 18 . Thermal 864 | 285 51 302 98 111 17 . Explosive 196 | . . . . 120 76 . Electromagnetic . | . . . . . . . Impact . | . . . . . . . Slashing . | . . . . . . . Piercing 2363 | . . . . . 884 1479 Highest Corruption 1 | . 1 1 . . . . Average Corruption 1 | . 1 1 . . . . Corruption Purged . | . . . . . . . Corruption Blocked . | . . . . . . . Effects 13 | . 1 12 . . . . Message Errors 5 | . . 5 . . . . Matter Fused 2 | . . 2 . . . . Heat Flow Errors 2 | . . 2 . . . . Energy Discharges 1 | . 1 . . . . . Data Loss (minor) 1 | . . 1 . . . . Misfires 1 | . . 1 . . . . Alerts 1 | . . 1 . . . . Overload Shots . | . . . . . . . Overflow Damage 62 | . . . . . 28 34 Projectiles . | . . . . . . . Explosions 16 | . . . . . 16 . Melee 46 | . . . . . 12 34 Knockbacks . | . . . . . . . Impact . | . . . . . . . Kinetic . | . . . . . . . Secondary . | . . . . . . . Self-Inflicted Damage . | . . . . . . . Shots . | . . . . . . . Rammed . | . . . . . . . Targets Rammed . | . . . . . . . Kicked . | . . . . . . . Crushed . | . . . . . . . Highest Temperature 391 | 273 78 391 214 62 12 9 Average Temperature 85 | 102 32 134 77 22 7 6 Received Heat Transfer 1227 | . . 153 9 111 198 756 Effects 3 | . . 2 1 . . . Shutdowns 1 | . . 1 . . . . Energy Bleed 2 | . . 1 1 . . . Siege Activations . | . . . . . . . Robots Corrupted . | . . . . . . . Combat Hostiles . | . . . . . . . Parts Fried . | . . . . . . . Impact Corruptions . | . . . . . . . Robots Melted 3 | 1 . 2 . . . . Combat Hostiles 2 | . . 2 . . . . Parts Melted 12 | 3 4 4 1 . . . Heat Transferred 3071 | 1073 296 962 296 407 37 . Parts Sabotaged . | . . . . . . . Parts Stolen . | . . . . . . . Parts Stripped . | . . . . . . . Power Chain Reactions . | . . . . . . . Missiles Intercepted . | . . . . . . . Alert | -11 -10 -10 -9 -9 -8 -8 ------- Run | Scr Mat Min Mat Min Mat Gar Peak Influence 711 | 45 89 85 108 143 223 711 Initial 146 | . 29 34 1 42 55 146 Average 127 | 24 58 23 68 31 69 479 Maximum Alert Level 3 | . . . . . 1 3 Low Security (%) 80 | 100 100 100 100 100 96 5 Level 1 6 | . . . . . 3 28 Level 2 9 | . . . . . . 50 Level 3 3 | . . . . . . 15 Level 4 . | . . . . . . . Level 5 . | . . . . . . . High Security . | . . . . . . . Max Security . | . . . . . . . Squads Dispatched 7 | . 1 . 1 . 5 . Investigation 3 | . 1 . . . 2 . Extermination . | . . . . . . . Reinforcement 2 | . . . 1 . 1 . Assault . | . . . . . . . Garrison 2 | . . . . . 2 . Intercept . | . . . . . . . Searches Triggered . | . . . . . . . Construction Impeded . | . . . . . . . Haulers Reinforced . | . . . . . . . Active Scanning Responses . | . . . . . . . Cargo Convoy Interrupts . | . . . . . . . Stealth | -11 -10 -10 -9 -9 -8 -8 --------- Run | Scr Mat Min Mat Min Mat Gar Distress Signals 3 | . . . . . 3 . Communications Jammed . | . . . . . . . Distress Signals . | . . . . . . . Times Spotted 67 | . 5 4 7 7 25 19 Peak Tracking Total 9 | . 3 2 6 3 9 5 Tactical Retreats 9 | . . . 1 2 3 3 Traps | -11 -10 -10 -9 -9 -8 -8 ------- Run | Scr Mat Min Mat Min Mat Gar Traps Triggered 7 | . . . . . . 7 Indirectly . | . . . . . . . Trap Hack Attempts . | . . . . . . . Triggered . | . . . . . . . Disarmed . | . . . . . . . Reprogrammed . | . . . . . . . Reused . | . . . . . . . Traps Extracted . | . . . . . . . Installed . | . . . . . . . Triggered . | . . . . . . . Machines | -11 -10 -10 -9 -9 -8 -8 ---------- Run | Scr Mat Min Mat Min Mat Gar Machines Disabled 3 | . . . 1 . . 2 Max in Single Turn 1 | . . . 1 . . 1 Garrison Relay 2 | . . . . . . 2 Machines Sabotaged . | . . . . . . . Garrisons Compromised . | . . . . . . . Overloaded Fab Kills . | . . . . . . . Hacking | -11 -10 -10 -9 -9 -8 -8 --------- Run | Scr Mat Min Mat Min Mat Gar Machines Accessed 8 | . 2 . 1 . 5 . Terminals 3 | . 1 . . . 2 . Fabricators . | . . . . . . . Repair Stations . | . . . . . . . Recycling Units 3 | . 1 . 1 . 1 . Scanalyzers 1 | . . . . . 1 . Garrison Access 1 | . . . . . 1 . Total Hacks 23 | . 5 . 1 . 17 . Successful 14 | . 3 . 1 . 10 . Failed 9 | . 2 . . . 7 . Catastrophic . | . . . . . . . Database Lockouts . | . . . . . . . Manual 9 | . 4 . 1 . 4 . Terminals 8 | . 2 . . . 6 . Fabricators . | . . . . . . . Repair Stations . | . . . . . . . Recycling Units 8 | . 3 . 1 . 4 . Scanalyzers 4 | . . . . . 4 . Garrison Access 3 | . . . . . 3 . Terminal Hacks 3 | . . . . . 3 . Prototype ID Bank 1 | . . . . . 1 . Alert Level 1 | . . . . . 1 . Recall Reinforcements 1 | . . . . . 1 . Fabricator Hacks . | . . . . . . . Repair Station Hacks . | . . . . . . . Recycling Unit Hacks 2 | . 1 . . . 1 . Report Inventory 2 | . 1 . . . 1 . Scanalyzer 4 | . . . . . 4 . Insert Component 2 | . . . . . 2 . Analyze 2 | . . . . . 2 . Garrison Access Hacks 1 | . . . . . 1 . Unlock Access 1 | . . . . . 1 . Unauthorized Hacks 4 | . 2 . 1 . 1 . Terminals . | . . . . . . . Fabricators . | . . . . . . . Repair Stations . | . . . . . . . Recycling Units 4 | . 2 . 1 . 1 . Reject 1 | . 1 . . . . . Mask 3 | . 1 . 1 . 1 . Scanalyzers . | . . . . . . . Garrison Access . | . . . . . . . Data Cores Recovered . | . . . . . . . Used . | . . . . . . . Hacking Detections 5 | . 1 . . . 4 . Full Trace Events 3 | . 1 . . . 2 . Feedback Events 1 | . 1 . . . . . Corruption 1 | . 1 . . . . . Feedback Blocked . | . . . . . . . Robot Schematics Acquired . | . . . . . . . Robots Built . | . . . . . . . Authchips . | . . . . . . . Time . | . . . . . . . Total Robot Build Rating . | . . . . . . . Part Schematics Acquired 2 | . . . . . 2 . Parts Built . | . . . . . . . Authchips . | . . . . . . . Time . | . . . . . . . Total Part Build Rating . | . . . . . . . Parts Repaired . | . . . . . . . Time . | . . . . . . . Parts Recycled . | . . . . . . . Recycled Matter . | . . . . . . . Retrieved Matter . | . . . . . . . Retrieved Components . | . . . . . . . Parts Scanalyzed 2 | . . . . . 2 . Part Schematics Acquired 2 | . . . . . 2 . Parts Damaged . | . . . . . . . Bothacking | -11 -10 -10 -9 -9 -8 -8 ------------ Run | Scr Mat Min Mat Min Mat Gar Used RIF Installer 1 | . . . . . . 1 Robots Hacked 1 | . . . . . 1 . Non-combat . | . . . . . . . Combat 1 | . . . . . 1 . Robot Hacks Applied 1 | . . . . . 1 . parse_system 1 | . . . . . 1 . Relay Couplers Released 7 | . . . . . . 7 Machine Destruction 7 | . . . . . . 7 Fabnet Peak Effective % . | . . . . . . . Robots Rewired . | . . . . . . . Allies Hacked . | . . . . . . . Hacks Repelled . | . . . . . . . Allies | -11 -10 -10 -9 -9 -8 -8 -------- Run | Scr Mat Min Mat Min Mat Gar Total Allies 3 | . . . . 3 . . Largest Group 3 | . . . . 3 3 . Highest-Rated Group 40 | . . . . 40 40 . Highest-Rated Ally 16 | . . . . 16 16 . Total Orders 5 | . . . . . 5 . ROAM 1 | . . . . . 1 . FOLLOW 1 | . . . . . 1 . GUARD 3 | . . . . . 3 . Ally Attacks 22 | . . . . 6 16 . Total Damage 202 | . . . . 26 176 . Kills 2 | . . . . 1 1 . Allies Corrupted . | . . . . . . . Allies Melted . | . . . . . . . Intel | -11 -10 -10 -9 -9 -8 -8 ------- Run | Scr Mat Min Mat Min Mat Gar Robot Analysis Total . | . . . . . . . Derelict Logs Recovered 3 | . . 2 . 1 . . Drone Launches . | . . . . . . . Drone Recoveries . | . . . . . . . Exploration | -11 -10 -10 -9 -9 -8 -8 ------------- Run | Scr Mat Min Mat Min Mat Gar Turns Passed 5171 | 271 202 1353 217 1136 970 1022 Spaces Moved 2057 | 141 163 231 122 469 334 597 Core 21 | 5 . . . . . 16 Treads . | . . . . . . . Legs 1212 | 125 . . . 424 327 336 Wheels 405 | 11 163 231 . . . . Hover 419 | . . . 122 45 7 245 Flight . | . . . . . . . Fastest Speed 48 | 50 80 80 48 112 48 48 Average Speed 129 | 114 80 80 68 188 158 115 Slowest Speed 400 | 120 80 80 112 260 210 400 Overloaded Moves . | . . . . . . . Propulsion Burnouts . | . . . . . . . Robots Hopped . | . . . . . . . Cave-ins Triggered . | . . . . . . . Exploration Rate (%) 35 | 4 30 54 14 73 27 49 Regions Visited 6 Branch Regions 2 Pre-discovered Areas . | . . . . . . . Known Exits Taken 1 | . . . . . 1 . Unknown Exits Taken 5 | 1 1 1 1 1 . . Scrap Searched 2 | . . . . 2 . . Spaces Dug 4 | . . . 2 . 2 . Terrain Destroyed 36 | . . . 2 17 17 . Melee 2 | . . . . . 2 . Projectile 2 | . . . 2 . . . AOE 32 | . . . . 17 15 . Terrain Rammed . | . . . . . . . Walls Destroyed . | . . . . . . . Machines Disabled . | . . . . . . . Actions | -11 -10 -10 -9 -9 -8 -8 --------- Run | Scr Mat Min Mat Min Mat Gar Total 4224 | 211 225 1367 237 670 707 807 Wait 1787 | 30 49 1114 90 159 273 72 Move 2052 | 140 162 230 121 468 334 597 Hop . | . . . . . . . Pick Up 42 | 11 4 3 3 4 14 3 Fast Attach 24 | 5 . . 2 2 7 8 Attach 16 | 3 . 1 2 . 4 6 Detach 5 | 1 . . 1 . 2 1 Swap 30 | 2 2 1 5 6 11 3 Drop 39 | 1 3 2 5 3 18 7 Fire 80 | 18 5 16 8 28 5 . Melee 113 | . . . . . 39 74 Ram . | . . . . . . . Kick . | . . . . . . . Crush . | . . . . . . . Escape Stasis 36 | . . . . . . 36 Rewire . | . . . . . . . Trap . | . . . . . . . Miscellaneous . | . . . . . . . Route ------- -11/Scrapyard -10/Materials -10/Mines -9/Materials (discovered 2 exits: [*Min] / Sto) -9/Mines (discovered 2 exits: *Mat x2) -8/Materials -8/Garrison (discovered 1 exit: [*Fac]) History --------- Turn | Location | Event 3 | -11/Scrapyard | Discovered new exit (range 15) 272 | -11/Scrapyard | Entered Materials 308 | -10/Materials | Build established: Mutant 443 | -10/Materials | Discovered new exit (range 9) 474 | -10/Materials | Entered Mines 494 | -10/Mines | Met a Derelict bent on vengeance 512 | -10/Mines | Learned location of 1 exit from Materials 1656 | -10/Mines | Core integrity fell below 50% 1747 | -10/Mines | Received a Rocket Launcher from a helpful Derelict 1796 | -10/Mines | Discovered new exit (range 8) 1813 | -10/Mines | Learned Materials garrison access intel 1827 | -10/Mines | Entered Materials 1827 | -9/Materials | Evolved 2 slots: Propulsion x2 1828 | -9/Materials | Identified exit to Storage 1945 | -9/Materials | Discovered new exit (range 16) 2044 | -9/Materials | Entered Mines 2047 | -9/Mines | Discovered new exit (range 12) 2600 | -9/Mines | Build established: Scavenger-Mutant 2673 | -9/Mines | Learned Materials emergency access door positions 3087 | -9/Mines | Discovered new exit (range 6) 3102 | -9/Mines | Assisted by bots powering up and referring to "LRC-V3" 3180 | -9/Mines | Entered Materials 3180 | -8/Materials | Accompanied by 3 allies 3180 | -8/Materials | Evolved 2 slots: Utility x2 3182 | -8/Materials | Loaded intel: 1 garrison access location 3957 | -8/Materials | Garrison activated, responded to threat 3973 | -8/Materials | Build established: Mutant 4150 | -8/Materials | Identified exit to Garrison 4150 | -8/Materials | Entered Garrison 4244 | -8/Garrison | Triggered checkpoint 4315 | -8/Garrison | Garrison Relay disabled 4502 | -8/Garrison | Triggered checkpoint 4508 | -8/Garrison | Triggered checkpoint 4598 | -8/Garrison | Core integrity fell below 50% 4707 | -8/Garrison | Build established: Scavenger-Mutant 4758 | -8/Garrison | Triggered checkpoint 4811 | -8/Garrison | Garrison Relay disabled 4979 | -8/Garrison | Discovered new exit (range 12) 5014 | -8/Garrison | Installed Relay Interface Framework 5124 | -8/Garrison | Triggered checkpoint 5164 | -8/Garrison | Core integrity fell below 20% 5172 | -8/Garrison | Destroyed by H-55 Commando with Assault Rifle Last Messages --------------- 05014_ Relay Interface Framework installed. 05124_ Beams of light sweep through the air. An alarm sounds. 05124_ Slug penetrates Reinforced Barrier. 05124_ Aluminum Leg destroyed. 05131_ Penetrated by Slug. 05131_ Aluminum Leg destroyed. 05133_ Slug penetrates Wall. 05134_ Penetrated by Slug. 05134_ Hover Unit destroyed. 05138_ Slug penetrates Wall. 05157_ Imp. Hover Unit destroyed. 05160_ Penetrated by Slug. 05160_ Imp. Hover Unit destroyed. 05163_ Deuterium Engine destroyed. 05163_ Penetrated by Slug. 05163_ Targeting Computer destroyed. 05166_ Imp. Sensor Array destroyed. 05169_ Penetrated by Slug. 05171_ Slug penetrates Wall. 05171_ Dropped Med. Storage Unit. Map ----- +----------------------------------------------------+ | ???????# ??####### #???????# %###########???????? | | ???????# ?# ## #???????# #?????????????????? | | ??????## ## ## ##??????# #?????????????????? | | ?###### ########= #?????????????????? | | ! = ^ #?????????????????? | | ^ = %*[% #?????????????????? | | ???#### ## ## ###########?????????????????? | | ??????# ## ## ###?????????????????????????? | | ??????" #?????????????????????????? | | ??????" #?????????????????????????? | | ??????" #?????????????????????????? | | ??????" #?????????????????????????? | | ??????# ## ## ###?????????????????????????? | | ??????# ## ## ##########??????????????????? | | ??????# #??????????????????? | | ??????# #??????????????????? | | ??????# ####### #??????????????????? | | ??????# ## ## ##?????# #??????????????????? | | ??????# ?# ???# #??????# #??????????????????? | | ??????# ??#?????# #??????# #????????#####?????? | | ??????# ????????# #??????# #????????# #?????? | | ??????# ?????????# #??????# ########## ####??? | | ?????????????????# #??????# " "[% [%%#??? | | ?????????????????# #??????# ##### #########[###? | | ?????????????????# ########h #???# #???????#!#"#? | | ?????????????????# h @ ##### #???????# !"#? | | ?????????????????# h #???????# ! #? | | ?????????????????########### #######???????# !"#? | | ???????????????????????????# #?????????????###"#? | | ???????????????????????????# #????????????????##? | | ???????????????????????????# #??????????????????? | | ???????????????????????????# #??????????????????? | | ???????????????????????????# #??????????????????? | | ???????????????????????????# ##############?????? | | ???????????????????????????# #?????? | | ???????????????????????????# #?????? | | ???????????????????????????############# < #?????? | | ???????????????????????????????????????# #?????? | | ???????????????????????????????????????## ##?????? | | ???????????????????????????????????????#" "#?????? | | ???????????????????????????????????????#" "#?????? | | ???????????????????????????????????????#" "#?????? | | ???????????????????????????????????????#"""#?????? | | ???????????????????????????????????????#####?????? | | ?????????????????????????????????????????????????? | | ?????????????????????????????????????????????????? | | ?????????????????????????????????????????????????? | | ?????????????????????????????????????????????????? | | ?????????????????????????????????????????????????? | | ?????????????????????????????????????????????????? | +----------------------------------------------------+ Best States ------------- Heat Dissipation 31 Energy Generation 14 Energy Capacity 275 Matter Stores 300 Matter Capacity 300 Sight Range 16 Robot Scan Range 15 Terrain Scan Range 16 Terrain Scan Density 10 Evasion (%) 55 Targeting Accuracy 10 Offensive Hacking 10 Item Schematics ----------------- Hover Unit | -8/Materials | Scanalyzed Hacking Suite | -8/Materials | Scanalyzed Robot Schematics ------------------ None Fabricated ------------ Nothing Alien Tech Used ----------------- None Achievements -------------- None Challenges ------------ None Game ------ Seed SniperBombCarapace Manual? 0 Play Time 00:48:11 Cumulative 116.0 hours Start 2022.03.24 @ 12:48:48 End 2022.03.24 @ 13:40:43 Sessions 1 Manual Loads 0 Difficulty Rogue Special Mode None Game No. 186 Rogue 186 Adventurer 0 Explorer 0 Win Type - Total 0 Types 0/0/0/0/0/0/0/0/0 Lore% 46 Gallery% 51 Achievement% 36 Wizard Run 0 Options --------- ASCII 0 Keyboard 0 Movement Mouse Keybinds 0 Fullscreen 1 Font 12/Smallcaps Map View 83x54 Tactical HUD 1 Map Filters NONE Filters NONE Steam 1 RUN: f7952e1e-1ed8-4164-a2ed-a174d29673f4